[Event "Titled Tuesday Blitz August 15 Early 2023"]
[White "Zepeda Berlanga, Jan Enrique"]
[Black "Llanos, Guillermo"]
[WhiteFideId "5132355"]
[BlackFideId "100358"]
[WhiteElo "1963"]
[BlackElo "2413"]
[Result "0-1"]
[Round "2"]
[TimeControl "180+1"]
[Date "2023.08.15"]
[WhiteClock "0:00:07"]
[BlackClock "0:00:10"]
[Board "243"]

1. c4 {[%clk 0:03:00]}  b6 {[%clk 0:02:58]} 2. Nc3 {[%clk 0:02:55]}  Bb7 {[%clk 0:02:57]} 3. e4 {[%clk 0:02:53]}  e5 {[%clk 0:02:56]} 4. Nf3 {[%clk 0:02:52]}  Nc6 {[%clk 0:02:55]} 5. d4 {[%clk 0:02:39]}  exd4 {[%clk 0:02:54]} 6. Nxd4 {[%clk 0:02:40]}  Nxd4 {[%clk 0:02:40]} 7. Qxd4 {[%clk 0:02:39]}  Nf6 {[%clk 0:02:39]} 8. Bg5 {[%clk 0:02:34]}  Be7 {[%clk 0:02:11]} 9. Bd3 {[%clk 0:02:23]}  d6 {[%clk 0:02:04]} 10. Bc2 {[%clk 0:02:04]}  h6 {[%clk 0:02:03]} 11. Bh4 {[%clk 0:01:56]}  Qd7 {[%clk 0:01:57]} 12. O-O-O {[%clk 0:01:51]}  O-O-O {[%clk 0:01:55]} 13. Bg3 {[%clk 0:01:34]}  Rhe8 {[%clk 0:01:28]} 14. h4 {[%clk 0:01:27]}  Qg4 {[%clk 0:01:21]} 15. Qe3 {[%clk 0:00:57]}  Bf8 {[%clk 0:01:11]} 16. Rhe1 {[%clk 0:00:39]}  Nh5 {[%clk 0:01:08]} 17. Ba4 {[%clk 0:00:37]}  Re6 {[%clk 0:00:54]} 18. Nd5 {[%clk 0:00:28]}  Nxg3 {[%clk 0:00:50]} 19. Qxg3 {[%clk 0:00:19]}  Qxg3 {[%clk 0:00:39]} 20. fxg3 {[%clk 0:00:19]}  g6 {[%clk 0:00:25]} 21. Re3 {[%clk 0:00:19]}  Bg7 {[%clk 0:00:24]} 22. Rf1 {[%clk 0:00:19]}  Rf8 {[%clk 0:00:20]} 23. Ref3 {[%clk 0:00:14]}  c6 {[%clk 0:00:18]} 24. Nc3 {[%clk 0:00:11]}  Re7 {[%clk 0:00:18]} 25. Bc2 {[%clk 0:00:11]}  Bxc3 {[%clk 0:00:17]} 26. Rxc3 {[%clk 0:00:10]}  Re5 {[%clk 0:00:16]} 27. Rcf3 {[%clk 0:00:10]}  Re7 {[%clk 0:00:16]} 28. Re3 {[%clk 0:00:10]}  Kd8 {[%clk 0:00:16]} 29. Kd2 {[%clk 0:00:10]}  Bc8 {[%clk 0:00:16]} 30. b4 {[%clk 0:00:09]}  Be6 {[%clk 0:00:15]} 31. Kc3 {[%clk 0:00:09]}  Kc7 {[%clk 0:00:16]} 32. a4 {[%clk 0:00:09]}  a5 {[%clk 0:00:15]} 33. b5 {[%clk 0:00:08]}  c5 {[%clk 0:00:15]} 34. e5 {[%clk 0:00:08]}  dxe5 {[%clk 0:00:13]} 35. Rxe5 {[%clk 0:00:08]}  Rfe8 {[%clk 0:00:13]} 36. Rfe1 {[%clk 0:00:09]}  Kd8 {[%clk 0:00:12]} 37. Be4 {[%clk 0:00:09]}  Bd7 {[%clk 0:00:12]} 38. Bd5 {[%clk 0:00:08]}  Rxe5 {[%clk 0:00:11]} 39. Rxe5 {[%clk 0:00:09]}  Rxe5 {[%clk 0:00:11]} 40. Bxf7 {[%clk 0:00:09]}  Bf5 {[%clk 0:00:10]} 41. Bd5 {[%clk 0:00:08]}  Re3+ {[%clk 0:00:10]} 42. Kd2 {[%clk 0:00:08]}  Rxg3 {[%clk 0:00:10]} 43. Bf3 {[%clk 0:00:08]}  h5 {[%clk 0:00:09]} 44. Ke2 {[%clk 0:00:08]}  g5 {[%clk 0:00:09]} 45. Kf2 {[%clk 0:00:06]}  gxh4 {[%clk 0:00:09]} 46. Ke2 {[%clk 0:00:06]}  Rg5 {[%clk 0:00:09]} 47. Ke3 {[%clk 0:00:06]}  Bg4 {[%clk 0:00:09]} 48. Be4 {[%clk 0:00:06]}  Kc7 {[%clk 0:00:09]} 49. Kf4 {[%clk 0:00:07]}  Rg7 {[%clk 0:00:09]} 50. Ke5 {[%clk 0:00:05]}  Re7+ {[%clk 0:00:09]} 51. Kf4 {[%clk 0:00:05]}  Rxe4+ {[%clk 0:00:09]} 52. Kxe4 {[%clk 0:00:06]}  h3 {[%clk 0:00:09]} 53. gxh3 {[%clk 0:00:06]}  Bxh3 {[%clk 0:00:09]} 54. Kf4 {[%clk 0:00:07]}  Bg4 {[%clk 0:00:10]} 55. Kg3 {[%clk 0:00:07]}  Kd6 {[%clk 0:00:10]} 56. Kf4 {[%clk 0:00:08]}  Bd1 {[%clk 0:00:10]} 57. Kg5 {[%clk 0:00:07]}  Ke5 {[%clk 0:00:10]} 58. Kh4 {[%clk 0:00:07]}  Kd4 {[%clk 0:00:10]} 59. Kg3 {[%clk 0:00:07]}  Kxc4 {[%clk 0:00:10]} 0-1


[Site "https://www.chess.com"]

[Event "Titled Tuesday Blitz August 15 Early 2023"]
[White "Mushini Ajay"]
[Black "Wilson, Otis"]
[WhiteFideId "35066188"]
[BlackFideId "30904021"]
[WhiteElo "2405"]
[BlackElo "1961"]
[Result "1-0"]
[Round "2"]
[TimeControl "180+1"]
[Date "2023.08.15"]
[WhiteClock "0:01:47"]
[BlackClock "0:00:00"]
[Board "245"]

1. e4 {[%clk 0:03:00]}  d6 {[%clk 0:02:59]} 2. Nc3 {[%clk 0:02:59]}  Nf6 {[%clk 0:02:59]} 3. d4 {[%clk 0:03:00]}  e5 {[%clk 0:02:59]} 4. Nf3 {[%clk 0:02:59]}  exd4 {[%clk 0:02:59]} 5. Qxd4 {[%clk 0:02:57]}  Be7 {[%clk 0:02:57]} 6. Bf4 {[%clk 0:02:57]}  Nbd7 {[%clk 0:02:35]} 7. O-O-O {[%clk 0:02:56]}  a6 {[%clk 0:02:32]} 8. h3 {[%clk 0:02:53]}  O-O {[%clk 0:02:32]} 9. g4 {[%clk 0:02:53]}  Nc5 {[%clk 0:02:09]} 10. e5 {[%clk 0:02:45]}  dxe5 {[%clk 0:01:54]} 11. Qxe5 {[%clk 0:02:46]}  Bd6 {[%clk 0:01:51]} 12. Rxd6 {[%clk 0:02:41]}  cxd6 {[%clk 0:01:49]} 13. Qxd6 {[%clk 0:02:42]}  Qa5 {[%clk 0:00:58]} 14. Bc4 {[%clk 0:02:21]}  Rd8 {[%clk 0:00:39]} 15. Qe7 {[%clk 0:01:58]}  Be6 {[%clk 0:00:33]} 16. Bc7 {[%clk 0:01:52]}  Qb4 {[%clk 0:00:03]} 17. Bxe6 {[%clk 0:01:49]}  Nxe6 {[%clk 0:00:00]} 18. Qxb4 {[%clk 0:01:47]} 1-0


[Site "https://www.chess.com"]

[Event "Titled Tuesday Blitz August 15 Early 2023"]
[White "Gritsenko, Nikolai"]
[Black "Bortnyk, Olexandr"]
[WhiteFideId "14112493"]
[BlackFideId "14120828"]
[WhiteElo "2742"]
[BlackElo "3082"]
[Result "0-1"]
[Round "3"]
[TimeControl "180+1"]
[Date "2023.08.15"]
[WhiteClock "0:00:16"]
[BlackClock "0:01:17"]
[Board "4"]

1. d4 {[%clk 0:03:00]}  Nf6 {[%clk 0:02:47]} 2. Bg5 {[%clk 0:03:00]}  g6 {[%clk 0:02:36]} 3. Bxf6 {[%clk 0:02:58]}  exf6 {[%clk 0:02:37]} 4. e3 {[%clk 0:02:59]}  c6 {[%clk 0:02:28]} 5. c4 {[%clk 0:02:58]}  Qb6 {[%clk 0:02:27]} 6. Qd2 {[%clk 0:02:53]}  d5 {[%clk 0:02:18]} 7. cxd5 {[%clk 0:02:51]}  cxd5 {[%clk 0:02:19]} 8. Nc3 {[%clk 0:02:50]}  Be6 {[%clk 0:02:19]} 9. Bb5+ {[%clk 0:02:43]}  Nc6 {[%clk 0:02:18]} 10. Nge2 {[%clk 0:02:42]}  Bd6 {[%clk 0:02:18]} 11. Bxc6+ {[%clk 0:02:39]}  bxc6 {[%clk 0:02:18]} 12. O-O {[%clk 0:02:37]}  O-O {[%clk 0:02:18]} 13. Rac1 {[%clk 0:02:35]}  Qa6 {[%clk 0:02:18]} 14. Nf4 {[%clk 0:02:25]}  Bxf4 {[%clk 0:02:16]} 15. exf4 {[%clk 0:02:25]}  Rfe8 {[%clk 0:02:10]} 16. b3 {[%clk 0:02:20]}  Qa5 {[%clk 0:02:09]} 17. Ne4 {[%clk 0:01:50]}  Qxd2 {[%clk 0:02:04]} 18. Nxd2 {[%clk 0:01:50]}  Bf5 {[%clk 0:01:55]} 19. Rfe1 {[%clk 0:01:47]}  a5 {[%clk 0:01:54]} 20. a4 {[%clk 0:01:37]}  Rxe1+ {[%clk 0:01:41]} 21. Rxe1 {[%clk 0:01:36]}  Rb8 {[%clk 0:01:42]} 22. h3 {[%clk 0:00:29]}  Rb4 {[%clk 0:01:38]} 23. g4 {[%clk 0:00:29]}  Be6 {[%clk 0:01:20]} 24. Rc1 {[%clk 0:00:23]}  Rxd4 {[%clk 0:01:19]} 25. Nf1 {[%clk 0:00:16]}  Bd7 {[%clk 0:01:17]} 0-1


[Site "https://www.chess.com"]

[Event "Titled Tuesday Blitz August 15 Early 2023"]
[White "Dubov, Daniil"]
[Black "Weetik, Vjacheslav"]
[WhiteFideId "24126055"]
[BlackFideId "4153472"]
[WhiteElo "3071"]
[BlackElo "2738"]
[Result "1-0"]
[Round "3"]
[TimeControl "180+1"]
[Date "2023.08.15"]
[WhiteClock "0:00:14"]
[BlackClock "0:00:04"]
[Board "5"]

1. d4 {[%clk 0:03:00]}  Nf6 {[%clk 0:02:59]} 2. Nf3 {[%clk 0:03:01]}  g6 {[%clk 0:02:59]} 3. c4 {[%clk 0:03:00]}  Bg7 {[%clk 0:02:59]} 4. Nc3 {[%clk 0:03:01]}  d6 {[%clk 0:02:59]} 5. Bg5 {[%clk 0:02:59]}  h6 {[%clk 0:02:59]} 6. Bh4 {[%clk 0:02:59]}  g5 {[%clk 0:02:59]} 7. Bg3 {[%clk 0:02:59]}  Nh5 {[%clk 0:03:00]} 8. e3 {[%clk 0:02:59]}  e6 {[%clk 0:03:00]} 9. Bd3 {[%clk 0:02:58]}  a6 {[%clk 0:02:58]} 10. Qc2 {[%clk 0:02:55]}  Nc6 {[%clk 0:02:58]} 11. a3 {[%clk 0:02:54]}  Bd7 {[%clk 0:02:49]} 12. O-O-O {[%clk 0:02:52]}  Qe7 {[%clk 0:02:35]} 13. d5 {[%clk 0:02:42]}  Nd8 {[%clk 0:02:21]} 14. Nd4 {[%clk 0:02:21]}  Nxg3 {[%clk 0:02:19]} 15. hxg3 {[%clk 0:02:21]}  c5 {[%clk 0:02:17]} 16. dxe6 {[%clk 0:02:10]}  fxe6 {[%clk 0:02:17]} 17. Nde2 {[%clk 0:01:50]}  O-O {[%clk 0:02:10]} 18. f4 {[%clk 0:01:49]}  b5 {[%clk 0:01:49]} 19. fxg5 {[%clk 0:01:48]}  Qxg5 {[%clk 0:01:48]} 20. Nf4 {[%clk 0:01:47]}  Qxg3 {[%clk 0:01:29]} 21. Rh3 {[%clk 0:01:41]}  Qg4 {[%clk 0:01:17]} 22. Bh7+ {[%clk 0:01:27]}  Kf7 {[%clk 0:01:15]} 23. Ne4 {[%clk 0:01:04]}  Nb7 {[%clk 0:01:06]} 24. Bg6+ {[%clk 0:00:44]}  Ke7 {[%clk 0:00:57]} 25. Bh5 {[%clk 0:00:43]}  Qf5 {[%clk 0:00:54]} 26. g4 {[%clk 0:00:41]}  Bxb2+ {[%clk 0:00:22]} 27. Kxb2 {[%clk 0:00:32]}  Qe5+ {[%clk 0:00:20]} 28. Ka2 {[%clk 0:00:31]}  Rxf4 {[%clk 0:00:14]} 29. exf4 {[%clk 0:00:31]}  Qxf4 {[%clk 0:00:15]} 30. Rhh1 {[%clk 0:00:19]}  bxc4 {[%clk 0:00:12]} 31. Rhf1 {[%clk 0:00:19]}  Qe5 {[%clk 0:00:11]} 32. Rf7+ {[%clk 0:00:17]}  Kd8 {[%clk 0:00:12]} 33. Rf8+ {[%clk 0:00:18]}  Kc7 {[%clk 0:00:11]} 34. Rxa8 {[%clk 0:00:18]}  d5 {[%clk 0:00:11]} 35. Nc3 {[%clk 0:00:17]}  d4 {[%clk 0:00:11]} 36. Qe4 {[%clk 0:00:15]}  Qh2+ {[%clk 0:00:10]} 37. Ne2 {[%clk 0:00:15]}  Bc6 {[%clk 0:00:09]} 38. Qf4+ {[%clk 0:00:15]}  Qxf4 {[%clk 0:00:08]} 39. Nxf4 {[%clk 0:00:16]}  c3 {[%clk 0:00:08]} 40. Nxe6+ {[%clk 0:00:15]}  Kb6 {[%clk 0:00:09]} 41. Nxd4 {[%clk 0:00:15]}  cxd4 {[%clk 0:00:09]} 42. Rxd4 {[%clk 0:00:16]}  c2 {[%clk 0:00:09]} 43. Kb2 {[%clk 0:00:16]}  Na5 {[%clk 0:00:09]} 44. Rad8 {[%clk 0:00:14]}  Kc5 {[%clk 0:00:04]} 45. Kxc2 {[%clk 0:00:14]} 1-0


[Site "https://www.chess.com"]

[Event "Titled Tuesday Blitz August 15 Early 2023"]
[White "Indjic, Aleksandar"]
[Black "Zhao, Jun"]
[WhiteFideId "911925"]
[BlackFideId "8602522"]
[WhiteElo "3031"]
[BlackElo "2726"]
[Result "1-0"]
[Round "3"]
[TimeControl "180+1"]
[Date "2023.08.15"]
[WhiteClock "0:01:05"]
[BlackClock "0:00:00"]
[Board "7"]

1. c4 {[%clk 0:03:00]}  e6 {[%clk 0:02:53]} 2. g3 {[%clk 0:02:59]}  d5 {[%clk 0:02:53]} 3. Bg2 {[%clk 0:02:59]}  Nf6 {[%clk 0:02:54]} 4. Nf3 {[%clk 0:03:00]}  Be7 {[%clk 0:02:54]} 5. O-O {[%clk 0:02:59]}  O-O {[%clk 0:02:53]} 6. b3 {[%clk 0:02:59]}  c5 {[%clk 0:02:49]} 7. cxd5 {[%clk 0:02:58]}  Nxd5 {[%clk 0:02:48]} 8. Bb2 {[%clk 0:02:59]}  Nc6 {[%clk 0:02:48]} 9. d4 {[%clk 0:02:59]}  cxd4 {[%clk 0:02:47]} 10. Nxd4 {[%clk 0:03:00]}  Nxd4 {[%clk 0:02:46]} 11. Qxd4 {[%clk 0:03:01]}  Bf6 {[%clk 0:02:46]} 12. Qd2 {[%clk 0:03:00]}  Nf4 {[%clk 0:02:46]} 13. gxf4 {[%clk 0:03:00]}  Qxd2 {[%clk 0:02:45]} 14. Nxd2 {[%clk 0:03:01]}  Bxb2 {[%clk 0:02:46]} 15. Rab1 {[%clk 0:03:01]}  Bf6 {[%clk 0:02:43]} 16. Ne4 {[%clk 0:03:01]}  Be7 {[%clk 0:02:40]} 17. Rfd1 {[%clk 0:03:01]}  Rd8 {[%clk 0:02:39]} 18. Rxd8+ {[%clk 0:03:00]}  Bxd8 {[%clk 0:02:40]} 19. Rd1 {[%clk 0:03:00]}  Be7 {[%clk 0:02:36]} 20. Nd6 {[%clk 0:03:00]}  Kf8 {[%clk 0:01:59]} 21. Bxb7 {[%clk 0:02:54]}  Bxb7 {[%clk 0:01:59]} 22. Nxb7 {[%clk 0:02:54]}  Rc8 {[%clk 0:02:00]} 23. Rd2 {[%clk 0:02:49]}  Rc7 {[%clk 0:01:52]} 24. Nd6 {[%clk 0:02:49]}  a5 {[%clk 0:01:31]} 25. Nc4 {[%clk 0:02:41]}  a4 {[%clk 0:01:31]} 26. e3 {[%clk 0:02:40]}  f6 {[%clk 0:01:23]} 27. Kg2 {[%clk 0:02:40]}  Kf7 {[%clk 0:01:23]} 28. Kf3 {[%clk 0:02:40]}  axb3 {[%clk 0:01:21]} 29. axb3 {[%clk 0:02:40]}  Rb7 {[%clk 0:01:20]} 30. Rd3 {[%clk 0:02:40]}  Rb5 {[%clk 0:01:20]} 31. h3 {[%clk 0:02:40]}  Rh5 {[%clk 0:01:19]} 32. Kg4 {[%clk 0:02:40]}  Rb5 {[%clk 0:01:19]} 33. Nd2 {[%clk 0:02:39]}  Rb7 {[%clk 0:01:13]} 34. Kf3 {[%clk 0:02:38]}  h6 {[%clk 0:01:11]} 35. Ke2 {[%clk 0:02:30]}  Rb5 {[%clk 0:01:10]} 36. Kf3 {[%clk 0:02:27]}  Rb7 {[%clk 0:01:10]} 37. Ne4 {[%clk 0:02:28]}  Rb5 {[%clk 0:01:01]} 38. Ng3 {[%clk 0:02:27]}  f5 {[%clk 0:00:57]} 39. Ne2 {[%clk 0:02:26]}  Bf6 {[%clk 0:00:57]} 40. Ng3 {[%clk 0:02:20]}  g5 {[%clk 0:00:55]} 41. Nf1 {[%clk 0:02:11]}  Rb4 {[%clk 0:00:50]} 42. Nd2 {[%clk 0:02:10]}  gxf4 {[%clk 0:00:50]} 43. exf4 {[%clk 0:02:11]}  Be7 {[%clk 0:00:32]} 44. Nc4 {[%clk 0:02:11]}  Kf6 {[%clk 0:00:33]} 45. Ne5 {[%clk 0:02:09]}  Re4 {[%clk 0:00:25]} 46. Kg3 {[%clk 0:02:05]}  Re1 {[%clk 0:00:25]} 47. Rd7 {[%clk 0:02:01]}  Rg1+ {[%clk 0:00:21]} 48. Kf3 {[%clk 0:02:00]}  Rh1 {[%clk 0:00:21]} 49. Kg2 {[%clk 0:01:59]}  Rb1 {[%clk 0:00:21]} 50. Rb7 {[%clk 0:01:59]}  Rb2 {[%clk 0:00:17]} 51. Kg3 {[%clk 0:01:58]}  Rb1 {[%clk 0:00:17]} 52. Kh4 {[%clk 0:01:40]}  Rb2 {[%clk 0:00:16]} 53. Kg3 {[%clk 0:01:40]}  Rb1 {[%clk 0:00:16]} 54. h4 {[%clk 0:01:40]}  Rg1+ {[%clk 0:00:16]} 55. Kh2 {[%clk 0:01:40]}  Rb1 {[%clk 0:00:15]} 56. h5 {[%clk 0:01:40]}  Rb2 {[%clk 0:00:16]} 57. Kg2 {[%clk 0:01:40]}  Rb1 {[%clk 0:00:16]} 58. Nd3 {[%clk 0:01:39]}  Rd1 {[%clk 0:00:16]} 59. Ne5 {[%clk 0:01:39]}  Rb1 {[%clk 0:00:16]} 60. Nd7+ {[%clk 0:01:38]}  Kf7 {[%clk 0:00:16]} 61. Nc5 {[%clk 0:01:37]}  Kf6 {[%clk 0:00:15]} 62. Nd3 {[%clk 0:01:37]}  Rd1 {[%clk 0:00:14]} 63. Rd7 {[%clk 0:01:37]}  Rb1 {[%clk 0:00:13]} 64. b4 {[%clk 0:01:27]}  Rb3 {[%clk 0:00:13]} 65. Rd4 {[%clk 0:01:27]}  Rb1 {[%clk 0:00:11]} 66. Kf3 {[%clk 0:01:28]}  Bf8 {[%clk 0:00:11]} 67. Ke2 {[%clk 0:01:27]}  Be7 {[%clk 0:00:12]} 68. Kd2 {[%clk 0:01:28]}  Rh1 {[%clk 0:00:12]} 69. b5 {[%clk 0:01:28]}  Rb1 {[%clk 0:00:12]} 70. Rc4 {[%clk 0:01:09]}  Rxb5 {[%clk 0:00:12]} 71. Rc1 {[%clk 0:01:10]}  Rd5 {[%clk 0:00:11]} 72. Rg1 {[%clk 0:01:08]}  Bd6 {[%clk 0:00:11]} 73. Rg6+ {[%clk 0:01:07]}  Kf7 {[%clk 0:00:11]} 74. Ke3 {[%clk 0:01:08]}  Bf8 {[%clk 0:00:11]} 75. Ne5+ {[%clk 0:01:06]}  Ke7 {[%clk 0:00:12]} 76. Rg8 {[%clk 0:01:06]}  Ra5 {[%clk 0:00:00]} 77. Nc6+ {[%clk 0:01:05]} 1-0


[Site "https://www.chess.com"]

[Event "Titled Tuesday Blitz August 15 Early 2023"]
[White "Dimitrov, Atanas"]
[Black "Aronian, Levon"]
[WhiteFideId "2901315"]
[BlackFideId "13300474"]
[WhiteElo "2725"]
[BlackElo "3029"]
[Result "0-1"]
[Round "3"]
[TimeControl "180+1"]
[Date "2023.08.15"]
[WhiteClock "0:01:04"]
[BlackClock "0:01:39"]
[Board "8"]

1. Nf3 {[%clk 0:03:00]}  Nf6 {[%clk 0:02:57]} 2. c4 {[%clk 0:03:00]}  g6 {[%clk 0:02:58]} 3. g3 {[%clk 0:03:00]}  Bg7 {[%clk 0:02:58]} 4. Bg2 {[%clk 0:03:00]}  O-O {[%clk 0:02:58]} 5. O-O {[%clk 0:03:01]}  d6 {[%clk 0:02:59]} 6. Nc3 {[%clk 0:03:01]}  Nc6 {[%clk 0:02:59]} 7. b3 {[%clk 0:02:59]}  e5 {[%clk 0:02:56]} 8. Bb2 {[%clk 0:02:58]}  Ng4 {[%clk 0:02:55]} 9. d3 {[%clk 0:02:54]}  f5 {[%clk 0:02:54]} 10. e3 {[%clk 0:02:48]}  Kh8 {[%clk 0:02:48]} 11. Nd2 {[%clk 0:02:44]}  f4 {[%clk 0:02:42]} 12. Nd5 {[%clk 0:02:39]}  Ne7 {[%clk 0:02:31]} 13. exf4 {[%clk 0:02:03]}  Nxd5 {[%clk 0:02:28]} 14. Bxd5 {[%clk 0:01:56]}  exf4 {[%clk 0:02:27]} 15. Bxg7+ {[%clk 0:01:56]}  Kxg7 {[%clk 0:02:28]} 16. Bg2 {[%clk 0:01:47]}  Qf6 {[%clk 0:02:23]} 17. Ne4 {[%clk 0:01:45]}  Qd4 {[%clk 0:02:22]} 18. Qe2 {[%clk 0:01:40]}  Ne5 {[%clk 0:02:19]} 19. Nd2 {[%clk 0:01:33]}  Qxd3 {[%clk 0:02:14]} 20. Qxd3 {[%clk 0:01:30]}  Nxd3 {[%clk 0:02:15]} 21. Rad1 {[%clk 0:01:29]}  Bg4 {[%clk 0:02:09]} 22. Rb1 {[%clk 0:01:23]}  Be2 {[%clk 0:02:04]} 23. Bxb7 {[%clk 0:01:20]}  Rae8 {[%clk 0:02:01]} 24. Bc6 {[%clk 0:01:18]}  Re5 {[%clk 0:01:58]} 25. Nf3 {[%clk 0:01:14]}  fxg3 {[%clk 0:01:53]} 26. fxg3 {[%clk 0:01:07]}  Bxf1 {[%clk 0:01:40]} 27. Nxe5 {[%clk 0:01:04]}  Nxe5 {[%clk 0:01:39]} 0-1


[Site "https://www.chess.com"]

[Event "Titled Tuesday Blitz August 15 Early 2023"]
[White "carokannlover213"]
[Black "Shimanov, Aleksandr"]
[BlackFideId "4198603"]
[WhiteElo "2723"]
[BlackElo "3015"]
[Result "0-1"]
[Round "3"]
[TimeControl "180+1"]
[Date "2023.08.15"]
[WhiteClock "0:00:03"]
[BlackClock "0:00:15"]
[Board "10"]

1. e4 {[%clk 0:03:00]}  e6 {[%clk 0:02:59]} 2. d4 {[%clk 0:03:01]}  d5 {[%clk 0:03:00]} 3. Nd2 {[%clk 0:02:58]}  c5 {[%clk 0:02:59]} 4. Ngf3 {[%clk 0:02:56]}  Nf6 {[%clk 0:02:59]} 5. exd5 {[%clk 0:02:52]}  Nxd5 {[%clk 0:03:00]} 6. dxc5 {[%clk 0:02:41]}  Bxc5 {[%clk 0:02:59]} 7. Ne4 {[%clk 0:02:41]}  Be7 {[%clk 0:02:55]} 8. Be2 {[%clk 0:02:40]}  O-O {[%clk 0:02:55]} 9. O-O {[%clk 0:02:40]}  Nc6 {[%clk 0:02:55]} 10. c4 {[%clk 0:02:40]}  Nf6 {[%clk 0:02:54]} 11. Nc3 {[%clk 0:02:37]}  b6 {[%clk 0:02:51]} 12. Be3 {[%clk 0:02:22]}  Bb7 {[%clk 0:02:51]} 13. Nd4 {[%clk 0:02:22]}  Ne5 {[%clk 0:02:46]} 14. f4 {[%clk 0:02:19]}  Ned7 {[%clk 0:02:31]} 15. Bf3 {[%clk 0:02:15]}  Qc8 {[%clk 0:02:29]} 16. Bxb7 {[%clk 0:02:11]}  Qxb7 {[%clk 0:02:29]} 17. Qf3 {[%clk 0:02:11]}  Qxf3 {[%clk 0:02:26]} 18. Nxf3 {[%clk 0:02:06]}  Rac8 {[%clk 0:02:25]} 19. b3 {[%clk 0:02:06]}  a6 {[%clk 0:02:26]} 20. Bd4 {[%clk 0:01:45]}  Rfd8 {[%clk 0:02:24]} 21. h3 {[%clk 0:01:42]}  Bc5 {[%clk 0:02:11]} 22. Bxc5 {[%clk 0:01:41]}  Nxc5 {[%clk 0:02:12]} 23. Rad1 {[%clk 0:01:41]}  Nce4 {[%clk 0:02:09]} 24. Nxe4 {[%clk 0:01:37]}  Nxe4 {[%clk 0:02:10]} 25. Ne5 {[%clk 0:01:38]}  Nc3 {[%clk 0:02:08]} 26. Nc6 {[%clk 0:01:30]}  Re8 {[%clk 0:01:55]} 27. Rd6 {[%clk 0:01:12]}  Ne4 {[%clk 0:01:54]} 28. Rd4 {[%clk 0:01:11]}  Ng3 {[%clk 0:01:53]} 29. Rd6 {[%clk 0:00:54]}  Nxf1 {[%clk 0:01:37]} 30. Kxf1 {[%clk 0:00:55]}  Rc7 {[%clk 0:01:30]} 31. Nb4 {[%clk 0:00:45]}  a5 {[%clk 0:01:26]} 32. Nc6 {[%clk 0:00:40]}  Kf8 {[%clk 0:01:22]} 33. Nd4 {[%clk 0:00:39]}  Rb7 {[%clk 0:01:20]} 34. Nb5 {[%clk 0:00:38]}  Ke7 {[%clk 0:01:19]} 35. Ke2 {[%clk 0:00:31]}  Rd8 {[%clk 0:01:16]} 36. Rc6 {[%clk 0:00:31]}  h5 {[%clk 0:01:07]} 37. a4 {[%clk 0:00:30]}  h4 {[%clk 0:01:06]} 38. c5 {[%clk 0:00:29]}  bxc5 {[%clk 0:01:06]} 39. Rxc5 {[%clk 0:00:30]}  Rbd7 {[%clk 0:01:06]} 40. Rc2 {[%clk 0:00:20]}  Rd3 {[%clk 0:01:04]} 41. Na7 {[%clk 0:00:17]}  R8d5 {[%clk 0:00:42]} 42. b4 {[%clk 0:00:17]}  Rg3 {[%clk 0:00:38]} 43. Kf2 {[%clk 0:00:09]}  axb4 {[%clk 0:00:37]} 44. Nc6+ {[%clk 0:00:10]}  Kf6 {[%clk 0:00:37]} 45. Nxb4 {[%clk 0:00:03]}  Rd4 {[%clk 0:00:37]} 46. Rb2 {[%clk 0:00:02]}  Rxf4+ {[%clk 0:00:37]} 47. Kg1 {[%clk 0:00:02]}  Ra3 {[%clk 0:00:37]} 48. Nc2 {[%clk 0:00:02]}  Raxa4 {[%clk 0:00:36]} 49. Ne3 {[%clk 0:00:02]}  Ra3 {[%clk 0:00:34]} 50. Nd1 {[%clk 0:00:02]}  Ra1 {[%clk 0:00:33]} 51. Rd2 {[%clk 0:00:02]}  g5 {[%clk 0:00:33]} 52. Kh2 {[%clk 0:00:02]}  Rf1 {[%clk 0:00:33]} 53. Nf2 {[%clk 0:00:02]}  Kg6 {[%clk 0:00:32]} 54. g3 {[%clk 0:00:02]}  hxg3+ {[%clk 0:00:33]} 55. Kxg3 {[%clk 0:00:03]}  f5 {[%clk 0:00:33]} 56. Kg2 {[%clk 0:00:02]}  Rg1+ {[%clk 0:00:33]} 57. Kh2 {[%clk 0:00:02]}  Rge1 {[%clk 0:00:30]} 58. Kg2 {[%clk 0:00:03]}  e5 {[%clk 0:00:30]} 59. Rd6+ {[%clk 0:00:03]}  Kh5 {[%clk 0:00:29]} 60. Rd8 {[%clk 0:00:03]}  e4 {[%clk 0:00:29]} 61. Rh8+ {[%clk 0:00:01]}  Kg6 {[%clk 0:00:29]} 62. h4 {[%clk 0:00:02]}  gxh4 {[%clk 0:00:29]} 63. Nh3 {[%clk 0:00:01]}  Re2+ {[%clk 0:00:27]} 64. Nf2 {[%clk 0:00:02]}  Raa2 {[%clk 0:00:27]} 65. Kg1 {[%clk 0:00:02]}  Rxf2 {[%clk 0:00:27]} 66. Rg8+ {[%clk 0:00:02]}  Kf6 {[%clk 0:00:27]} 67. Rb8 {[%clk 0:00:02]}  Kg7 {[%clk 0:00:25]} 68. Rb7+ {[%clk 0:00:02]}  Kg8 {[%clk 0:00:25]} 69. Rb8+ {[%clk 0:00:03]}  Kh7 {[%clk 0:00:26]} 70. Rb7+ {[%clk 0:00:04]}  Kh8 {[%clk 0:00:26]} 71. Rb6 {[%clk 0:00:05]}  Kg8 {[%clk 0:00:26]} 72. Rb8+ {[%clk 0:00:05]}  Kf7 {[%clk 0:00:26]} 73. Rb7+ {[%clk 0:00:06]}  Ke8 {[%clk 0:00:27]} 74. Rb6 {[%clk 0:00:07]}  Kd7 {[%clk 0:00:27]} 75. Rb7+ {[%clk 0:00:08]}  Kc8 {[%clk 0:00:27]} 76. Rh7 {[%clk 0:00:08]}  Rfb2 {[%clk 0:00:27]} 77. Rh8+ {[%clk 0:00:09]}  Kb7 {[%clk 0:00:27]} 78. Rb8+ {[%clk 0:00:06]}  Kc7 {[%clk 0:00:25]} 79. Kf1 {[%clk 0:00:07]}  h3 {[%clk 0:00:22]} 80. Ke1 {[%clk 0:00:07]}  h2 {[%clk 0:00:22]} 81. Rc8+ {[%clk 0:00:08]}  Kd7 {[%clk 0:00:21]} 82. Rd8+ {[%clk 0:00:08]}  Ke7 {[%clk 0:00:22]} 83. Re8+ {[%clk 0:00:07]}  Kf6 {[%clk 0:00:21]} 84. Rf8+ {[%clk 0:00:08]}  Kg5 {[%clk 0:00:20]} 85. Rxf5+ {[%clk 0:00:08]}  Kxf5 {[%clk 0:00:20]} 86. Kd1 {[%clk 0:00:03]}  h1=Q# {[%clk 0:00:15]} 0-1


[Site "https://www.chess.com"]